[Event "Titled Tuesday Blitz February 21 Early 2023"]
[White "Bharath Subramaniyam H"]
[Black "Malek, Jan"]
[WhiteFideId "46634827"]
[BlackFideId "21864080"]
[WhiteElo "2517"]
[BlackElo "2370"]
[Result "1/2-1/2"]
[Round "03"]
[TimeControl "180+2"]
[Date "2023.02.21"]
[WhiteClock "0:00:06"]
[BlackClock "0:00:05"]

1. e4 {[%clk 0:03:00]}  c5 {[%clk 0:02:59]} 2. Nf3 {[%clk 0:03:00]}  Nc6 {[%clk 0:02:59]} 3. Bc4 {[%clk 0:02:59]}  g6 {[%clk 0:03:00]} 4. O-O {[%clk 0:02:58]}  Bg7 {[%clk 0:03:00]} 5. c3 {[%clk 0:02:59]}  d6 {[%clk 0:02:56]} 6. h3 {[%clk 0:02:57]}  Nf6 {[%clk 0:02:56]} 7. Re1 {[%clk 0:02:58]}  O-O {[%clk 0:02:55]} 8. d4 {[%clk 0:02:58]}  cxd4 {[%clk 0:02:52]} 9. cxd4 {[%clk 0:02:59]}  a6 {[%clk 0:02:45]} 10. Nc3 {[%clk 0:02:57]}  b5 {[%clk 0:02:45]} 11. Bf1 {[%clk 0:02:54]}  Bb7 {[%clk 0:02:45]} 12. d5 {[%clk 0:02:49]}  Na5 {[%clk 0:02:41]} 13. Nd4 {[%clk 0:02:47]}  Rc8 {[%clk 0:02:39]} 14. a3 {[%clk 0:02:41]}  Nc4 {[%clk 0:02:38]} 15. a4 {[%clk 0:02:32]}  b4 {[%clk 0:02:36]} 16. Nb1 {[%clk 0:02:25]}  Qb6 {[%clk 0:02:31]} 17. Bxc4 {[%clk 0:02:02]}  Rxc4 {[%clk 0:02:29]} 18. Be3 {[%clk 0:02:02]}  Nxd5 {[%clk 0:01:36]} 19. exd5 {[%clk 0:01:51]}  Bxd4 {[%clk 0:01:35]} 20. Nd2 {[%clk 0:01:51]}  Rc7 {[%clk 0:01:30]} 21. a5 {[%clk 0:01:45]}  Qa7 {[%clk 0:01:28]} 22. Nf3 {[%clk 0:01:37]}  Bxe3 {[%clk 0:01:28]} 23. Rxe3 {[%clk 0:01:38]}  Qc5 {[%clk 0:01:28]} 24. Rd3 {[%clk 0:01:27]}  Rfc8 {[%clk 0:01:27]} 25. Qd2 {[%clk 0:01:25]}  Qc2 {[%clk 0:01:25]} 26. Qh6 {[%clk 0:01:16]}  f6 {[%clk 0:00:42]} 27. Rd4 {[%clk 0:01:08]}  Qxb2 {[%clk 0:00:34]} 28. Re1 {[%clk 0:00:49]}  e5 {[%clk 0:00:24]} 29. dxe6 {[%clk 0:00:22]}  Bxf3 {[%clk 0:00:24]} 30. Rd2 {[%clk 0:00:20]}  Qc3 {[%clk 0:00:19]} 31. gxf3 {[%clk 0:00:21]}  Re8 {[%clk 0:00:16]} 32. Kg2 {[%clk 0:00:18]}  Rce7 {[%clk 0:00:14]} 33. Rde2 {[%clk 0:00:17]}  Qc4 {[%clk 0:00:12]} 34. Qe3 {[%clk 0:00:16]}  Rxe6 {[%clk 0:00:10]} 35. Qxe6+ {[%clk 0:00:15]}  Rxe6 {[%clk 0:00:11]} 36. Rxe6 {[%clk 0:00:15]}  Kg7 {[%clk 0:00:10]} 37. Rxd6 {[%clk 0:00:15]}  b3 {[%clk 0:00:10]} 38. Rb6 {[%clk 0:00:16]}  Qc3 {[%clk 0:00:09]} 39. Re7+ {[%clk 0:00:16]}  Kh6 {[%clk 0:00:08]} 40. Reb7 {[%clk 0:00:16]}  Qxa5 {[%clk 0:00:08]} 41. Rxb3 {[%clk 0:00:17]}  Qg5+ {[%clk 0:00:08]} 42. Kf1 {[%clk 0:00:17]}  Qf5 {[%clk 0:00:07]} 43. Kg2 {[%clk 0:00:15]}  Qg5+ {[%clk 0:00:06]} 44. Kh1 {[%clk 0:00:16]}  Kh5 {[%clk 0:00:04]} 45. R7b4 {[%clk 0:00:15]}  Qf5 {[%clk 0:00:03]} 46. Rg4 {[%clk 0:00:14]}  g5 {[%clk 0:00:03]} 47. Kg2 {[%clk 0:00:13]}  Qd5 {[%clk 0:00:03]} 48. Ra3 {[%clk 0:00:11]}  f5 {[%clk 0:00:03]} 49. Rga4 {[%clk 0:00:12]}  Qe5 {[%clk 0:00:01]} 50. Rxa6 {[%clk 0:00:12]}  Qf4 {[%clk 0:00:01]} 51. Rf6 {[%clk 0:00:11]}  Qe5 {[%clk 0:00:02]} 52. Raa6 {[%clk 0:00:10]}  g4 {[%clk 0:00:02]} 53. fxg4+ {[%clk 0:00:09]}  fxg4 {[%clk 0:00:03]} 54. hxg4+ {[%clk 0:00:08]}  Kxg4 {[%clk 0:00:03]} 55. Rf3 {[%clk 0:00:07]}  Qe4 {[%clk 0:00:03]} 56. Ra3 {[%clk 0:00:07]}  h5 {[%clk 0:00:03]} 57. Re3 {[%clk 0:00:08]}  Qd5 {[%clk 0:00:02]} 58. Rd3 {[%clk 0:00:08]}  Qe4 {[%clk 0:00:03]} 59. Re3 {[%clk 0:00:06]}  Qd5 {[%clk 0:00:04]} 60. Rb3 {[%clk 0:00:06]}  Qe4 {[%clk 0:00:03]} 61. Rc3 {[%clk 0:00:04]}  h4 {[%clk 0:00:03]} 62. Re3 {[%clk 0:00:03]}  h3+ {[%clk 0:00:02]} 63. Kh2 {[%clk 0:00:04]}  Qxf3 {[%clk 0:00:03]} 64. Rxf3 {[%clk 0:00:05]}  Kxf3 {[%clk 0:00:04]} 65. Kxh3 {[%clk 0:00:06]}  Kxf2 {[%clk 0:00:05]} 1/2-1/2


[Site "https://www.chess.com"]

[Event "Titled Tuesday Blitz February 21 Early 2023"]
[White "Rosen, Eric"]
[Black "Ter-Sahakyan, Samvel"]
[WhiteFideId "2032562"]
[BlackFideId "13302531"]
[WhiteElo "2349"]
[BlackElo "2617"]
[Result "0-1"]
[Round "03"]
[TimeControl "180+2"]
[Date "2023.02.21"]
[WhiteClock "0:00:02"]
[BlackClock "0:00:14"]

1. d4 {[%clk 0:03:00]}  Nf6 {[%clk 0:02:59]} 2. Bf4 {[%clk 0:02:57]}  d5 {[%clk 0:02:54]} 3. e3 {[%clk 0:02:57]}  c5 {[%clk 0:02:54]} 4. Nf3 {[%clk 0:02:57]}  Nc6 {[%clk 0:02:54]} 5. Nbd2 {[%clk 0:02:57]}  Nh5 {[%clk 0:02:52]} 6. dxc5 {[%clk 0:02:55]}  Nxf4 {[%clk 0:02:52]} 7. exf4 {[%clk 0:02:56]}  Qa5 {[%clk 0:02:52]} 8. c4 {[%clk 0:02:54]}  e6 {[%clk 0:02:49]} 9. a3 {[%clk 0:02:47]}  Qxc5 {[%clk 0:02:48]} 10. b4 {[%clk 0:02:47]}  Qd6 {[%clk 0:02:49]} 11. g3 {[%clk 0:02:44]}  g6 {[%clk 0:02:48]} 12. Qb3 {[%clk 0:02:39]}  Bg7 {[%clk 0:02:48]} 13. Rd1 {[%clk 0:02:37]}  O-O {[%clk 0:02:43]} 14. Bg2 {[%clk 0:02:32]}  a5 {[%clk 0:02:42]} 15. c5 {[%clk 0:02:23]}  Qc7 {[%clk 0:02:41]} 16. O-O {[%clk 0:02:21]}  axb4 {[%clk 0:02:41]} 17. axb4 {[%clk 0:02:22]}  b6 {[%clk 0:02:38]} 18. Rc1 {[%clk 0:02:05]}  bxc5 {[%clk 0:02:37]} 19. bxc5 {[%clk 0:01:56]}  Ba6 {[%clk 0:02:24]} 20. Rfe1 {[%clk 0:01:54]}  Rfb8 {[%clk 0:02:24]} 21. Qe3 {[%clk 0:01:53]}  Rb4 {[%clk 0:02:00]} 22. Ne5 {[%clk 0:01:47]}  Nxe5 {[%clk 0:01:28]} 23. fxe5 {[%clk 0:01:47]}  Rc8 {[%clk 0:01:26]} 24. Qa3 {[%clk 0:01:37]}  Qb7 {[%clk 0:01:23]} 25. Ra1 {[%clk 0:01:12]}  Bc4 {[%clk 0:01:13]} 26. Reb1 {[%clk 0:01:01]}  Rxb1+ {[%clk 0:01:11]} 27. Rxb1 {[%clk 0:01:01]}  Qa6 {[%clk 0:01:07]} 28. Nxc4 {[%clk 0:00:49]}  Qxc4 {[%clk 0:01:07]} 29. Rc1 {[%clk 0:00:50]}  Qb5 {[%clk 0:01:05]} 30. Bf1 {[%clk 0:00:30]}  Qc6 {[%clk 0:01:04]} 31. Qb2 {[%clk 0:00:10]}  Qc7 {[%clk 0:00:46]} 32. f4 {[%clk 0:00:08]}  g5 {[%clk 0:00:43]} 33. c6 {[%clk 0:00:08]}  gxf4 {[%clk 0:00:44]} 34. gxf4 {[%clk 0:00:09]}  Bh6 {[%clk 0:00:41]} 35. Qf2 {[%clk 0:00:08]}  Kh8 {[%clk 0:00:36]} 36. Bd3 {[%clk 0:00:08]}  Qe7 {[%clk 0:00:27]} 37. Kf1 {[%clk 0:00:06]}  Qb4 {[%clk 0:00:24]} 38. f5 {[%clk 0:00:02]}  Bxc1 {[%clk 0:00:23]} 39. fxe6 {[%clk 0:00:02]}  Qf4 {[%clk 0:00:19]} 40. Qxf4 {[%clk 0:00:01]}  Bxf4 {[%clk 0:00:19]} 41. exf7 {[%clk 0:00:01]}  Kg7 {[%clk 0:00:17]} 42. e6 {[%clk 0:00:02]}  Bd6 {[%clk 0:00:16]} 43. Bb5 {[%clk 0:00:02]}  Kf6 {[%clk 0:00:14]} 0-1


[Site "https://www.chess.com"]

[Event "Titled Tuesday Blitz February 21 Early 2023"]
[White "Karthik Rajaa"]
[Black "Madaminov, Mukhiddin"]
[WhiteFideId "25035215"]
[BlackFideId "14210703"]
[WhiteElo "2276"]
[BlackElo "2422"]
[Result "1/2-1/2"]
[Round "03"]
[TimeControl "180+2"]
[Date "2023.02.21"]
[WhiteClock "0:00:16"]
[BlackClock "0:00:27"]

1. Nf3 {[%clk 0:03:00]}  Nf6 {[%clk 0:02:59]} 2. c4 {[%clk 0:03:00]}  b6 {[%clk 0:02:53]} 3. g3 {[%clk 0:02:59]}  Bb7 {[%clk 0:02:49]} 4. Bg2 {[%clk 0:02:59]}  e6 {[%clk 0:02:50]} 5. O-O {[%clk 0:02:53]}  Be7 {[%clk 0:02:50]} 6. Nc3 {[%clk 0:02:52]}  O-O {[%clk 0:02:49]} 7. d4 {[%clk 0:02:49]}  Ne4 {[%clk 0:02:49]} 8. Bd2 {[%clk 0:02:39]}  Nxc3 {[%clk 0:02:28]} 9. Bxc3 {[%clk 0:02:39]}  Be4 {[%clk 0:02:28]} 10. Re1 {[%clk 0:02:34]}  c5 {[%clk 0:02:10]} 11. e3 {[%clk 0:02:25]}  Bf6 {[%clk 0:01:54]} 12. Rc1 {[%clk 0:02:21]}  Nc6 {[%clk 0:01:44]} 13. Ne5 {[%clk 0:01:51]}  Bxg2 {[%clk 0:01:28]} 14. Kxg2 {[%clk 0:01:52]}  Qc7 {[%clk 0:01:17]} 15. Nxc6 {[%clk 0:01:44]}  Qxc6+ {[%clk 0:01:17]} 16. d5 {[%clk 0:01:45]}  exd5 {[%clk 0:01:18]} 17. cxd5 {[%clk 0:01:44]}  Qd6 {[%clk 0:01:18]} 18. e4 {[%clk 0:01:45]}  Rfe8 {[%clk 0:01:15]} 19. f4 {[%clk 0:01:44]}  Bxc3 {[%clk 0:01:09]} 20. bxc3 {[%clk 0:01:39]}  Qg6 {[%clk 0:01:04]} 21. e5 {[%clk 0:01:23]}  d6 {[%clk 0:01:03]} 22. Qf3 {[%clk 0:01:20]}  Rad8 {[%clk 0:01:02]} 23. f5 {[%clk 0:01:14]}  Qh6 {[%clk 0:00:54]} 24. e6 {[%clk 0:01:12]}  Qd2+ {[%clk 0:00:54]} 25. Kg1 {[%clk 0:01:03]}  fxe6 {[%clk 0:00:33]} 26. dxe6 {[%clk 0:00:53]}  d5 {[%clk 0:00:33]} 27. f6 {[%clk 0:00:46]}  gxf6 {[%clk 0:00:32]} 28. Qxf6 {[%clk 0:00:45]}  Rf8 {[%clk 0:00:32]} 29. e7 {[%clk 0:00:41]}  Rxf6 {[%clk 0:00:25]} 30. exd8=Q+ {[%clk 0:00:41]}  Rf8 {[%clk 0:00:26]} 31. Qe7 {[%clk 0:00:13]}  Qf2+ {[%clk 0:00:26]} 32. Kh1 {[%clk 0:00:14]}  Qf3+ {[%clk 0:00:26]} 33. Kg1 {[%clk 0:00:15]}  Qf2+ {[%clk 0:00:27]} 34. Kh1 {[%clk 0:00:16]}  Qf3+ {[%clk 0:00:27]} 35. Kg1 {[%clk 0:00:16]}  Qf2+ {[%clk 0:00:27]} 1/2-1/2


[Site "https://www.chess.com"]

[Event "Titled Tuesday Blitz February 21 Early 2023"]
[White "Megalios, Konstantinos"]
[Black "Ibarra Jerez, Jose Carlos"]
[WhiteFideId "4238044"]
[BlackFideId "2226332"]
[WhiteElo "2372"]
[BlackElo "2563"]
[Result "0-1"]
[Round "03"]
[TimeControl "180+2"]
[Date "2023.02.21"]
[WhiteClock "0:00:10"]
[BlackClock "0:01:16"]

1. Nf3 {[%clk 0:03:00]}  Nf6 {[%clk 0:02:59]} 2. c4 {[%clk 0:03:00]}  d6 {[%clk 0:02:59]} 3. g3 {[%clk 0:02:58]}  g6 {[%clk 0:02:59]} 4. Bg2 {[%clk 0:02:58]}  Bg7 {[%clk 0:02:59]} 5. b3 {[%clk 0:02:57]}  e5 {[%clk 0:02:57]} 6. Bb2 {[%clk 0:02:57]}  O-O {[%clk 0:02:57]} 7. Nc3 {[%clk 0:02:57]}  Re8 {[%clk 0:02:54]} 8. d3 {[%clk 0:02:56]}  c6 {[%clk 0:02:51]} 9. O-O {[%clk 0:02:55]}  d5 {[%clk 0:02:51]} 10. cxd5 {[%clk 0:02:44]}  cxd5 {[%clk 0:02:52]} 11. Rc1 {[%clk 0:02:44]}  d4 {[%clk 0:02:50]} 12. Nb5 {[%clk 0:02:39]}  Nc6 {[%clk 0:02:46]} 13. e3 {[%clk 0:02:32]}  a6 {[%clk 0:02:40]} 14. Na3 {[%clk 0:02:26]}  dxe3 {[%clk 0:02:40]} 15. fxe3 {[%clk 0:02:24]}  Nd5 {[%clk 0:02:22]} 16. Nc4 {[%clk 0:01:55]}  b5 {[%clk 0:01:59]} 17. e4 {[%clk 0:01:23]}  Ndb4 {[%clk 0:01:50]} 18. Ne3 {[%clk 0:01:12]}  Qb6 {[%clk 0:01:50]} 19. Qe2 {[%clk 0:01:03]}  Bh6 {[%clk 0:01:50]} 20. Rfe1 {[%clk 0:01:01]}  Nd4 {[%clk 0:01:23]} 21. Qf1 {[%clk 0:00:17]}  Ndc2 {[%clk 0:01:19]} 22. d4 {[%clk 0:00:10]}  Nxe3 {[%clk 0:01:16]} 0-1


[Site "https://www.chess.com"]

[Event "Titled Tuesday Blitz February 21 Early 2023"]
[White "TheKnightOfBosnia"]
[Black "Predke, Alexandr"]
[BlackFideId "24107581"]
[WhiteElo "2616"]
[BlackElo "2685"]
[Result "0-1"]
[Round "03"]
[TimeControl "180+2"]
[Date "2023.02.21"]
[WhiteClock "0:00:09"]
[BlackClock "0:00:11"]

1. e4 {[%clk 0:03:00]}  c5 {[%clk 0:02:59]} 2. Nf3 {[%clk 0:03:01]}  e6 {[%clk 0:02:59]} 3. d4 {[%clk 0:03:01]}  cxd4 {[%clk 0:03:00]} 4. Nxd4 {[%clk 0:03:02]}  a6 {[%clk 0:03:01]} 5. Nc3 {[%clk 0:03:02]}  b5 {[%clk 0:03:01]} 6. a3 {[%clk 0:03:02]}  Bb7 {[%clk 0:03:01]} 7. Bd3 {[%clk 0:03:02]}  Nc6 {[%clk 0:03:01]} 8. Nxc6 {[%clk 0:03:00]}  Bxc6 {[%clk 0:03:02]} 9. f4 {[%clk 0:03:00]}  Bc5 {[%clk 0:02:48]} 10. Qe2 {[%clk 0:02:59]}  Ne7 {[%clk 0:02:46]} 11. Be3 {[%clk 0:02:57]}  Qb6 {[%clk 0:02:46]} 12. Bxc5 {[%clk 0:02:55]}  Qxc5 {[%clk 0:02:46]} 13. Qf2 {[%clk 0:02:55]}  Qxf2+ {[%clk 0:02:43]} 14. Kxf2 {[%clk 0:02:56]}  d5 {[%clk 0:02:43]} 15. Rhd1 {[%clk 0:02:48]}  O-O {[%clk 0:02:24]} 16. exd5 {[%clk 0:02:39]}  Nxd5 {[%clk 0:02:25]} 17. Nxd5 {[%clk 0:02:39]}  Bxd5 {[%clk 0:02:25]} 18. c3 {[%clk 0:02:38]}  Bb3 {[%clk 0:02:22]} 19. Be4 {[%clk 0:02:28]}  Rad8 {[%clk 0:02:06]} 20. Rxd8 {[%clk 0:02:23]}  Rxd8 {[%clk 0:02:07]} 21. Ke3 {[%clk 0:02:22]}  Kf8 {[%clk 0:01:58]} 22. Bb7 {[%clk 0:02:12]}  Rd6 {[%clk 0:01:56]} 23. Re1 {[%clk 0:02:06]}  Bc4 {[%clk 0:01:48]} 24. Be4 {[%clk 0:02:05]}  h6 {[%clk 0:01:24]} 25. Bc2 {[%clk 0:02:02]}  g5 {[%clk 0:01:24]} 26. fxg5 {[%clk 0:01:55]}  hxg5 {[%clk 0:01:23]} 27. Rd1 {[%clk 0:01:55]}  Rxd1 {[%clk 0:01:16]} 28. Bxd1 {[%clk 0:01:55]}  Ke7 {[%clk 0:01:17]} 29. b3 {[%clk 0:01:43]}  Bd5 {[%clk 0:01:17]} 30. g3 {[%clk 0:01:39]}  f5 {[%clk 0:01:15]} 31. a4 {[%clk 0:01:31]}  bxa4 {[%clk 0:01:12]} 32. bxa4 {[%clk 0:01:32]}  a5 {[%clk 0:01:11]} 33. h4 {[%clk 0:01:21]}  gxh4 {[%clk 0:00:49]} 34. gxh4 {[%clk 0:01:22]}  e5 {[%clk 0:00:49]} 35. Bf3 {[%clk 0:00:44]}  f4+ {[%clk 0:00:47]} 36. Kf2 {[%clk 0:00:43]}  e4 {[%clk 0:00:47]} 37. Be2 {[%clk 0:00:39]}  e3+ {[%clk 0:00:46]} 38. Ke1 {[%clk 0:00:35]}  f3 {[%clk 0:00:41]} 39. Bb5 {[%clk 0:00:35]}  Be6 {[%clk 0:00:33]} 40. Bf1 {[%clk 0:00:21]}  Kf6 {[%clk 0:00:29]} 41. c4 {[%clk 0:00:20]}  Bd7 {[%clk 0:00:22]} 42. c5 {[%clk 0:00:17]}  Bxa4 {[%clk 0:00:21]} 43. h5 {[%clk 0:00:18]}  Kg5 {[%clk 0:00:20]} 44. Be2 {[%clk 0:00:13]}  f2+ {[%clk 0:00:19]} 45. Kf1 {[%clk 0:00:14]}  Bd7 {[%clk 0:00:19]} 46. Kg2 {[%clk 0:00:13]}  Bc6+ {[%clk 0:00:19]} 47. Kf1 {[%clk 0:00:13]}  a4 {[%clk 0:00:17]} 48. Bc4 {[%clk 0:00:09]}  a3 {[%clk 0:00:17]} 49. Ke2 {[%clk 0:00:09]}  Kh6 {[%clk 0:00:11]} 50. Kxe3 {[%clk 0:00:09]}  a2 {[%clk 0:00:11]} 0-1


[Site "https://www.chess.com"]

[Event "Titled Tuesday Blitz February 21 Early 2023"]
[White "Bernadskiy, Vitaliy"]
[Black "Tan, Jun Ying"]
[WhiteFideId "14100371"]
[BlackFideId "5710413"]
[WhiteElo "2592"]
[BlackElo "2307"]
[Result "1-0"]
[Round "03"]
[TimeControl "180+2"]
[Date "2023.02.21"]
[WhiteClock "0:02:21"]
[BlackClock "0:00:09"]

1. e4 {[%clk 0:03:00]}  c6 {[%clk 0:03:00]} 2. d4 {[%clk 0:02:58]}  d5 {[%clk 0:03:00]} 3. Nc3 {[%clk 0:02:56]}  dxe4 {[%clk 0:02:59]} 4. Nxe4 {[%clk 0:02:57]}  Nf6 {[%clk 0:03:00]} 5. Nxf6+ {[%clk 0:02:57]}  exf6 {[%clk 0:03:00]} 6. Bd3 {[%clk 0:02:58]}  Qxd4 {[%clk 0:02:37]} 7. Nf3 {[%clk 0:02:58]}  Qd8 {[%clk 0:02:36]} 8. O-O {[%clk 0:02:57]}  Be7 {[%clk 0:02:37]} 9. c3 {[%clk 0:02:54]}  O-O {[%clk 0:02:37]} 10. Qc2 {[%clk 0:02:54]}  g6 {[%clk 0:02:28]} 11. Bh6 {[%clk 0:02:48]}  Re8 {[%clk 0:02:29]} 12. Rad1 {[%clk 0:02:49]}  Qc7 {[%clk 0:02:26]} 13. Bc4 {[%clk 0:02:45]}  Bg4 {[%clk 0:02:09]} 14. Rfe1 {[%clk 0:02:43]}  Qb6 {[%clk 0:00:38]} 15. b4 {[%clk 0:02:34]}  Be6 {[%clk 0:00:18]} 16. Bxe6 {[%clk 0:02:28]}  fxe6 {[%clk 0:00:18]} 17. Qb3 {[%clk 0:02:29]}  Na6 {[%clk 0:00:08]} 18. Qxe6+ {[%clk 0:02:23]}  Kh8 {[%clk 0:00:09]} 19. Qf7 {[%clk 0:02:21]} 1-0


[Site "https://www.chess.com"]

[Event "Titled Tuesday Blitz February 21 Early 2023"]
[White "Sadykov, Ramil"]
[Black "Molina, Roberto Junio Brito"]
[WhiteFideId "24113590"]
[BlackFideId "2109450"]
[WhiteElo "2345"]
[BlackElo "2403"]
[Result "1/2-1/2"]
[Round "03"]
[TimeControl "180+2"]
[Date "2023.02.21"]
[WhiteClock "0:01:03"]
[BlackClock "0:00:48"]

1. e4 {[%clk 0:02:59]}  c6 {[%clk 0:03:00]} 2. Nc3 {[%clk 0:02:54]}  d5 {[%clk 0:03:01]} 3. Nf3 {[%clk 0:02:53]}  dxe4 {[%clk 0:03:00]} 4. Nxe4 {[%clk 0:02:53]}  Bg4 {[%clk 0:02:59]} 5. h3 {[%clk 0:02:42]}  Bxf3 {[%clk 0:02:57]} 6. Qxf3 {[%clk 0:02:43]}  Nd7 {[%clk 0:02:57]} 7. d4 {[%clk 0:02:42]}  Ndf6 {[%clk 0:02:55]} 8. Nxf6+ {[%clk 0:02:34]}  Nxf6 {[%clk 0:02:55]} 9. c3 {[%clk 0:02:32]}  Qd5 {[%clk 0:02:52]} 10. Qxd5 {[%clk 0:02:30]}  Nxd5 {[%clk 0:02:52]} 11. Be2 {[%clk 0:02:29]}  e6 {[%clk 0:02:51]} 12. O-O {[%clk 0:02:27]}  g6 {[%clk 0:02:50]} 13. Bf3 {[%clk 0:02:26]}  O-O-O {[%clk 0:02:48]} 14. Re1 {[%clk 0:02:25]}  h5 {[%clk 0:02:45]} 15. h4 {[%clk 0:02:22]}  Bh6 {[%clk 0:02:45]} 16. g3 {[%clk 0:02:20]}  Bxc1 {[%clk 0:02:43]} 17. Raxc1 {[%clk 0:02:21]}  Rd7 {[%clk 0:02:41]} 18. Kg2 {[%clk 0:02:20]}  Rhd8 {[%clk 0:02:39]} 19. Re5 {[%clk 0:02:17]}  Nf6 {[%clk 0:02:37]} 20. Rce1 {[%clk 0:02:12]}  Kc7 {[%clk 0:02:37]} 21. Kf1 {[%clk 0:02:09]}  Kd6 {[%clk 0:02:36]} 22. Ke2 {[%clk 0:02:04]}  Rc7 {[%clk 0:02:35]} 23. Ke3 {[%clk 0:02:03]}  Nd7 {[%clk 0:02:31]} 24. Re4 {[%clk 0:01:46]}  f5 {[%clk 0:02:27]} 25. Rf4 {[%clk 0:01:45]}  Nf6 {[%clk 0:02:24]} 26. Bg2 {[%clk 0:01:32]}  b6 {[%clk 0:02:22]} 27. Rd1 {[%clk 0:01:26]}  Ke7 {[%clk 0:02:20]} 28. Ke2 {[%clk 0:01:22]}  Rd6 {[%clk 0:02:15]} 29. Rf3 {[%clk 0:01:20]}  Rcd7 {[%clk 0:02:11]} 30. Rfd3 {[%clk 0:01:20]}  Nd5 {[%clk 0:02:05]} 31. Bxd5 {[%clk 0:01:17]}  Rxd5 {[%clk 0:02:03]} 32. f4 {[%clk 0:01:09]}  Kf6 {[%clk 0:02:00]} 33. Ke3 {[%clk 0:01:07]}  Rd8 {[%clk 0:02:00]} 34. c4 {[%clk 0:01:07]}  R5d7 {[%clk 0:02:00]} 35. R1d2 {[%clk 0:01:05]}  Ke7 {[%clk 0:01:59]} 36. Rd1 {[%clk 0:01:05]}  Kd6 {[%clk 0:01:59]} 37. R1d2 {[%clk 0:01:03]}  Ke7 {[%clk 0:01:56]} 38. Rd1 {[%clk 0:01:03]}  Kf6 {[%clk 0:01:22]} 39. R1d2 {[%clk 0:01:03]}  Ke7 {[%clk 0:00:48]} 1/2-1/2


[Site "https://www.chess.com"]

[Event "Titled Tuesday Blitz February 21 Early 2023"]
[White "Stribuk, Artiom"]
[Black "Mamedov, Edgar"]
[WhiteFideId "13515659"]
[BlackFideId "13739980"]
[WhiteElo "2378"]
[BlackElo "2193"]
[Result "1/2-1/2"]
[Round "03"]
[TimeControl "180+2"]
[Date "2023.02.21"]
[WhiteClock "0:00:27"]
[BlackClock "0:00:16"]

1. d4 {[%clk 0:02:57]}  d5 {[%clk 0:02:59]} 2. c4 {[%clk 0:02:54]}  c6 {[%clk 0:02:59]} 3. Nf3 {[%clk 0:02:53]}  Nf6 {[%clk 0:02:58]} 4. g3 {[%clk 0:02:50]}  Bf5 {[%clk 0:02:55]} 5. Nc3 {[%clk 0:02:50]}  e6 {[%clk 0:02:52]} 6. Qb3 {[%clk 0:02:50]}  Qb6 {[%clk 0:02:50]} 7. c5 {[%clk 0:02:48]}  Qc7 {[%clk 0:02:49]} 8. Bf4 {[%clk 0:02:48]}  Qc8 {[%clk 0:02:50]} 9. Nh4 {[%clk 0:02:49]}  Bg4 {[%clk 0:02:45]} 10. h3 {[%clk 0:02:49]}  Bh5 {[%clk 0:02:45]} 11. g4 {[%clk 0:02:50]}  Bg6 {[%clk 0:02:45]} 12. Bg2 {[%clk 0:02:51]}  Nbd7 {[%clk 0:02:44]} 13. Nxg6 {[%clk 0:02:44]}  hxg6 {[%clk 0:02:42]} 14. O-O {[%clk 0:02:43]}  Be7 {[%clk 0:02:31]} 15. e4 {[%clk 0:02:37]}  dxe4 {[%clk 0:02:27]} 16. Nxe4 {[%clk 0:02:38]}  Nxe4 {[%clk 0:02:24]} 17. Bxe4 {[%clk 0:02:39]}  Nf6 {[%clk 0:02:23]} 18. Bg2 {[%clk 0:02:28]}  Nd5 {[%clk 0:02:22]} 19. Bg3 {[%clk 0:02:25]}  g5 {[%clk 0:02:16]} 20. Bxd5 {[%clk 0:02:14]}  exd5 {[%clk 0:02:09]} 21. Rae1 {[%clk 0:02:11]}  Kf8 {[%clk 0:02:04]} 22. Rxe7 {[%clk 0:01:50]}  Kxe7 {[%clk 0:02:03]} 23. Bd6+ {[%clk 0:01:50]}  Kd8 {[%clk 0:01:28]} 24. Kg2 {[%clk 0:00:46]}  Re8 {[%clk 0:01:18]} 25. Qb4 {[%clk 0:00:46]}  Qd7 {[%clk 0:01:00]} 26. Rd1 {[%clk 0:00:42]}  Kc8 {[%clk 0:00:55]} 27. Rd3 {[%clk 0:00:42]}  a5 {[%clk 0:00:26]} 28. Qd2 {[%clk 0:00:36]}  b5 {[%clk 0:00:20]} 29. Qxg5 {[%clk 0:00:30]}  f6 {[%clk 0:00:20]} 30. Qd2 {[%clk 0:00:28]}  Kb7 {[%clk 0:00:19]} 31. Ra3 {[%clk 0:00:28]}  a4 {[%clk 0:00:19]} 32. b3 {[%clk 0:00:27]}  axb3 {[%clk 0:00:16]} 1/2-1/2


[Site "https://www.chess.com"]

[Event "Titled Tuesday Blitz February 21 Early 2023"]
[White "Harsh Suresh"]
[Black "Maltsevskaya, Aleksandra"]
[WhiteFideId "45018464"]
[BlackFideId "24174041"]
[WhiteElo "2298"]
[BlackElo "2390"]
[Result "0-1"]
[Round "03"]
[TimeControl "180+2"]
[Date "2023.02.21"]
[WhiteClock "0:00:03"]
[BlackClock "0:00:09"]

1. e4 {[%clk 0:03:00]}  c5 {[%clk 0:02:59]} 2. Nc3 {[%clk 0:03:00]}  e6 {[%clk 0:02:59]} 3. Nge2 {[%clk 0:02:35]}  Nc6 {[%clk 0:02:58]} 4. g3 {[%clk 0:02:32]}  Nf6 {[%clk 0:02:58]} 5. Bg2 {[%clk 0:02:32]}  d5 {[%clk 0:02:56]} 6. exd5 {[%clk 0:02:31]}  exd5 {[%clk 0:02:57]} 7. d4 {[%clk 0:02:31]}  Bg4 {[%clk 0:02:55]} 8. Be3 {[%clk 0:02:28]}  cxd4 {[%clk 0:02:53]} 9. Bxd4 {[%clk 0:02:27]}  Bd6 {[%clk 0:02:45]} 10. O-O {[%clk 0:02:11]}  O-O {[%clk 0:02:45]} 11. h3 {[%clk 0:02:11]}  Bxe2 {[%clk 0:02:28]} 12. Nxe2 {[%clk 0:02:11]}  Rc8 {[%clk 0:02:28]} 13. c3 {[%clk 0:02:09]}  Re8 {[%clk 0:02:26]} 14. Be3 {[%clk 0:01:58]}  Qa5 {[%clk 0:02:10]} 15. Bg5 {[%clk 0:01:42]}  Ne4 {[%clk 0:02:10]} 16. Bf4 {[%clk 0:01:42]}  Bf8 {[%clk 0:02:06]} 17. Nd4 {[%clk 0:01:30]}  Nxd4 {[%clk 0:01:59]} 18. Qxd4 {[%clk 0:01:05]}  Bc5 {[%clk 0:01:59]} 19. Qd3 {[%clk 0:01:00]}  Qb6 {[%clk 0:01:58]} 20. Qc2 {[%clk 0:00:58]}  h6 {[%clk 0:01:48]} 21. Rad1 {[%clk 0:00:55]}  g5 {[%clk 0:01:44]} 22. Bxe4 {[%clk 0:00:29]}  Rxe4 {[%clk 0:01:24]} 23. Rxd5 {[%clk 0:00:26]}  Qe6 {[%clk 0:01:12]} 24. Rxc5 {[%clk 0:00:19]}  Rxc5 {[%clk 0:01:13]} 25. Be3 {[%clk 0:00:20]}  Rd5 {[%clk 0:01:11]} 26. Rd1 {[%clk 0:00:17]}  Ree5 {[%clk 0:00:35]} 27. Rxd5 {[%clk 0:00:17]}  Qxd5 {[%clk 0:00:36]} 28. Qe2 {[%clk 0:00:12]}  Qxa2 {[%clk 0:00:35]} 29. c4 {[%clk 0:00:08]}  Re4 {[%clk 0:00:25]} 30. Qh5 {[%clk 0:00:04]}  Qb1+ {[%clk 0:00:17]} 31. Kg2 {[%clk 0:00:04]}  Re6 {[%clk 0:00:18]} 32. Qf3 {[%clk 0:00:02]}  Qe4 {[%clk 0:00:18]} 33. Bxa7 {[%clk 0:00:02]}  Qxc4 {[%clk 0:00:17]} 34. Qxb7 {[%clk 0:00:02]}  Rc6 {[%clk 0:00:09]} 35. Qd7 {[%clk 0:00:01]}  Qe4+ {[%clk 0:00:08]} 36. Kh2 {[%clk 0:00:02]}  Rc1 {[%clk 0:00:08]} 37. Qd8+ {[%clk 0:00:02]}  Kh7 {[%clk 0:00:08]} 38. g4 {[%clk 0:00:02]}  Rh1+ {[%clk 0:00:07]} 39. Kg3 {[%clk 0:00:02]}  Rg1+ {[%clk 0:00:08]} 40. Kh2 {[%clk 0:00:03]}  Qg2# {[%clk 0:00:09]} 0-1


[Site "https://www.chess.com"]